Workbook

Sheet 1. Info
AB1: Algoma Power Inc.
AB2: Atikokan Hydro Inc.
AB3: Attawapiskat Power Corporation
AB4: Bluewater Power Distribution Corp.
AB5: Brant County Power
AB6: Brantford Power Inc.
AB7: Burlington Hydro Inc.
AB8: Cambridge and North Dumfries Hydro
AB9: Canadian Niagara Power Inc. – Eastern Ontario Power/Fort Erie/Port Colborne
AB10: Centre Wellington Hydro Ltd.
AB11: Chapleau Public Utilities Corporation
AB12: COLLUS Power Corp.
AB13: Cooperative Hydro Embrun Inc.
AB14: E.L.K. Energy Inc.
C15: Utility Name | D15: Peterborough Distribution Inc. | AB15: Enersource Hydro Mississauga Inc.
AB16: Entegrus Powerlines Inc.
C17: Assigned EB Number | D17: EB-2012-0160 | AB17: ENWIN Utilities Ltd.
AB18: Erie Thames Powerlines Corp.
C19: Name and Title | D19: Byron Thompson, CFO | AB19: Espanola Regional Hydro Distribution Corporation
AB20: Essex Powerlines Corporation
C21: Phone Number | D21: 705-748-9301 x 1283 | AB21: Festival Hydro Inc.
AB22: Fort Albany Power Corporation
C23: Email Address | D23: bthompson@peterboroughutilities.ca | AB23: Fort Frances Power Corporation
AB24: Greater Sudbury Hydro Inc.
C25: Date | D25: 2013-01-15 | AB25: Grimsby Power Inc.
AB26: Guelph Hydro Electric Systems Inc.
C27: Last COS Re-based Year | D27: 2009 | AB27: Haldimand County Hydro Inc.
AB28: Halton Hills Hydro Inc.
AB29: Hearst Power Distribution Co. Ltd.
A30: Note: Drop-down lists are shaded blue; Input cells are shaded green.
AB32: Horizon Utilities Corporation
AB33: Hydro 2000 Inc.
AB34: Hydro Hawkesbury Inc.
AB35: Hydro One Brampton Networks Inc.
AB36: Hydro One Networks Inc.
AB37: Hydro One Remote Communities Inc.
AB38: Hydro Ottawa Limited
AB39: Innisfil Hydro Dist. Systems Limited
AB40: Kashechewan Power Corporation
AB41: Kenora Hydro Electric Corporation Ltd.
AB42: Kingston Hydro Corporation
AB43: Kitchener-Wilmot Hydro Inc.
AB44: Lakefront Utilities Inc.
AB45: Lakeland Power Distribution Ltd.
AB46: London Hydro Inc.
AB47: Midland Power Utility Corporation
AB48: Milton Hydro Distribution Inc.
AB49: Newmarket – Tay Power Distribution Ltd.
AB50: Niagara Peninsula Energy Inc.
AB51: Niagara-on-the-Lake Hydro Inc.
AB52: Norfolk Power Distribution Ltd.
AB53: North Bay Hydro Distribution Limited
AB54: Northern Ontario Wires Inc.
AB55: Oakville Hydro Distribution Inc.
AB56: Orangeville Hydro Limited
AB57: Orillia Power Distribution Corp.
AB58: Oshawa PUC Networks Inc.
AB59: Ottawa River Power Corporation
AB60: Parry Sound Power Corporation
AB61: Peterborough Distribution Inc.
AB62: PowerStream Inc.
AB63: PUC Distribution Inc.
AB64: Renfrew Hydro Inc.
AB65: Rideau St. Lawrence Distribution Inc.
AB66: St. Thomas Energy Inc.
AB67: Sioux Lookout Hydro Inc.
AB68: Thunder Bay Hydro Electricity Distribution
AB69: Tillsonburg Hydro Inc.
AB70: Toronto Hydro-Electric System Limited
AB71: Veridian Connections Inc.
AB72: Wasaga Distribution Inc.
AB73: Waterloo North Hydro Inc.
AB74: Welland Hydro Electric System Corp.
AB75: Wellington North Power Inc.
AB76: West Coast Huron Energy Inc.
AB77: Westario Power Inc.
AB78: Whitby Hydro Electric Corporation
AB79: Woodstock Hydro Services Inc.

Sheet Table of Contents
AA1: 1
AA2: 2012
AA3: 2013
AA4: 2014
AA5: 2015
AA6: 2016
D16: 1. Info | F16: K. Sch 13 Tax Reserves Bridge
D17: A. Data Input Sheet | F17: L. Sch 7-1 Loss Cfwd Bridge
D18: B. Tax Rates & Exemptions | F18: M. Adj. Taxable Income Bridge
D19: C. Sch 8 Hist | F19: N. PILs,Tax Provision Bridge
D20: D. Schedule 10 CEC Hist | F20: O. Schedule 8 CCA Test Year
D21: E. Sch 13 Tax Reserves Hist | F21: P. Schedule 10 CEC Test Year
D22: F. Sch 7-1 Loss Cfwd Hist | F22: Q Sch 13 Tax Reserve Test Year
D23: G. Adj. Taxable Income Historic | F23: R. Sch 7-1 Loss Cfwd
D24: H. PILs,Tax Provision Historic | F24: S. Taxable Income Test Year
D25: I. Schedule 8 CCA Bridge Year | F25: T. PILs,Tax Provision
D26: J. Schedule 10 CEC Bridge Year

Sheet A. Data Input Sheet
C9: Rate Base | G9: 65485610
C11: Return on Ratebase
C12: Deemed ShortTerm Debt % | E12: 0.04 | F12: T | G12: =G9*E12 -> 2619424.4 | H12: W = S * T
C13: Deemed Long Term Debt % | E13: 0.56 | F13: U | G13: =G9*E13 -> 36671941.6 | H13: X = S * U
C14: Deemed Equity % | E14: 0.4 | F14: V | G14: =G9*E14 -> 26194244 | H14: Y = S * V
C16: Short Term Interest Rate | E16: 0.0208 | F16: Z | G16: =G12*E16 -> 54484.02752 | H16: AC = W * Z
C17: Long Term Interest | E17: 0.0411 | F17: AA | G17: =G13*E17 -> 1507216.8 | H17: AD = X * AA
C18: Return on Equity (Regulatory Income) | E18: 0.0898 | F18: AB | G18: =G14*E18 -> 2352243.111 | H18: AE = Y * AB
C19: Return on Rate Base | G19: =SUM(G16:G18) -> 3913943.938 | H19: AF = AC + AD + AE
C24: Questions that must be answered | G24: Historic | H24: Bridge | I24: Test Year
C26: 1. Does the applicant have any Investment Tax Credits (ITC)? | G26: No | H26: No | I26: No
C28: 2. Does the applicant have any SRED Expenditures? | G28: No | H28: No | I28: No
C30: 3. Does the applicant have any Capital Gains or Losses for tax purposes? | G30: No | H30: No | I30: No
C32: 4. Does the applicant have any Capital Leases? | G32: No | H32: No | I32: No
C34: 5. Does the applicant have any Loss Carry-Forwards (non-capital or net capital)? | G34: No | H34: No | I34: No
C36: 6. Since 1999, has the applicant acquired another regulated applicant's assets? | G36: No | H36: No | I36: No
C38: 7. Did the applicant pay dividends? | G38: Yes | H38: Yes | I38: Yes
C39: If Yes, please describe what was the tax treatment in the manager's summary.
C41: 8. Did the applicant elect to capitalize interest incurred on CWIP for tax purposes? | G41: No | H41: No | I41: No

Sheet B. Tax Rates & Exemptions
C9: Tax Rates
C10: Federal & Provincial | E10: Effective | F10: Effective | G10: Effective | H10: Effective
C11: As of June 20, 2012 | E11: 2011-01-01 | F11: 2012-01-01 | G11: 2013-01-01 | H11: 2014-01-01
C13: Federal income tax
C14: General corporate rate | E14: 0.38 | F14: 0.38 | G14: 0.38 | H14: 0.38
C15: Federal tax abatement | E15: -0.1 | F15: -0.1 | G15: -0.1 | H15: -0.1
C16: Adjusted federal rate | E16: =SUM(E14:E15) -> 0.28 | F16: =SUM(F14:F15) -> 0.28 | G16: =SUM(G14:G15) -> 0.28 | H16: =SUM(H14:H15) -> 0.28
C18: Rate reduction | E18: -0.115 | F18: -0.13 | G18: -0.13 | H18: -0.13
E19: =E16+E18 -> 0.165 | F19: =F16+F18 -> 0.15 | G19: =G16+G18 -> 0.15 | H19: =H16+H18 -> 0.15
C21: Ontario income tax | E21: =0.12*0.5+0.115*0.5 -> 0.1175 | F21: 0.115 | G21: 0.115 | H21: 0.115
C23: Combined federal and Ontario | E23: =E19+E21 -> 0.2825 | F23: =F19+F21 -> 0.265 | G23: =G19+G21 -> 0.265 | H23: =H19+H21 -> 0.265
C25: Federal & Ontario Small Business
C26: Federal small business threshold | E26: 500000 | F26: 500000 | G26: 500000 | H26: 500000
C27: Ontario Small Business Threshold | E27: 500000 | F27: 500000 | G27: 500000 | H27: 500000
C29: Federal small business rate | E29: 0.11 | F29: 0.11 | G29: 0.11 | H29: 0.11
C31: Ontario small business rate | E31: 0.045 | F31: 0.045 | G31: 0.045 | H31: 0.045

Sheet C. Sch 8 Hist
C6: Schedule 8 - Historical Year
C11: Class | D11: Class Description | E11: UCC End of Year Historic per tax returns | F11: Less: Non-Distribution Portion | G11: UCC Regulated Historic Year
C12: 1 | D12: Distribution System - post 1987 | E12: =352162+1231244+13588974+11647252+6501167 -> 33320799 | G12: =+E12-F12 -> 33320799
C13: 1 Enhanced | D13: Non-residential Buildings Reg. 1100(1)(a.1) election | G13: =+E13-F13 -> 0
C14: 2 | D14: Distribution System - pre 1988 | G14: =+E14-F14 -> 0
C15: 8 | D15: General Office/Stores Equip | E15: =174174+24296 -> 198470 | G15: 198470
C16: 10 | D16: Computer Hardware/ Vehicles | G16: 0
C17: 10.1 | D17: Certain Automobiles | G17: 0
C18: 12 | D18: Computer Software | G18: 0
C19: 13 1 | D19: Lease # 1 | G19: 0
C20: 13 2 | D20: Lease #2 | G20: 0
C21: 13 3 | D21: Lease # 3 | G21: 0
C22: 13 4 | D22: Lease # 4 | G22: 0
C23: 14 | D23: Franchise | G23: 0
C24: 17 | D24: New Electrical Generating Equipment Acq'd after Feb 27/00 Other Than Bldgs | G24: 0
C25: 42 | D25: Fibre Optic Cable | G25: =+E25-F25 -> 0
C26: 43.1 | D26: Certain Energy-Efficient Electrical Generating Equipment | G26: 0
C27: 43.2 | D27: Certain Clean Energy Generation Equipment | G27: 0
C28: 45 | D28: Computers & Systems Software acq'd post Mar 22/04 | G28: 0
C29: 46 | D29: Data Network Infrastructure Equipment (acq'd post Mar 22/04) | G29: 0
C30: 47 | D30: Distribution System - post February 2005 | E30: =265299+7174163+5942290+4874803+7276747 -> 25533302 | G30: 25533302
C31: 50 | D31: Data Network Infrastructure Equipment - post Mar 2007 | G31: 0
C32: 52 | D32: Computer Hardware and system software | G32: 0
C33: 95 | D33: CWIP | G33: 0
C34: 1 | D34: Meters pre 2005 | E34: 1577648 | G34: 1577648
G35: 0
G36: 0
G37: 0
G38: 0
G39: 0
G40: 0
G41: 0
G42: 0
G43: 0
D44: SUB-TOTAL - UCC | E44: =SUM(E12:E43) -> 60630219 | F44: =SUM(F12:F43) -> 0 | G44: =SUM(G12:G43) -> 60630219

Sheet D. Schedule 10 CEC Hist
C8: Schedule 10 CEC - Historical Year
C10: Cumulative Eligible Capital
C11: Additions
C12: Cost of Eligible Capital Property Acquired during Test Year
C14: Other Adjustments | G14: 0
C16: Subtotal | G16: =SUM(G12,G14) -> 0 | I16: x 3/4 = | J16: =3/4*G16 -> 0
C18: Non-taxable portion of a non-arm's length transferor's gain realized on the | G18: 0 | I18: x 1/2 = | J18: =IF((G18*0.5)<0, 0, G18*0.5) -> 0
C19: transfer of an ECP to the Corporation after Friday, December 20, 2002
J20: =IF((J16-J18)<0,0,J16-J18) -> 0 | K20: =J20 -> 0
C22: Amount transferred on amalgamation or wind-up of subsidiary | G22: 0 | K22: =G22 -> 0
F24: Subtotal | K24: =SUM(K10,K20,K22) -> 0
C26: Deductions
C28: Proceeds of sale (less outlays and expenses not otherwise deductible)
C29: from the disposition of all ECP during Test Year
C31: Other Adjustments | G31: 0
F33: Subtotal | G33: =SUM(G31,G28) -> 0 | I33: x 3/4 = | K33: =G33*3/4 -> 0
C36: Cumulative Eligible Capital Balance | K36: =K24-K33 -> 0
C38: Current Year Deduction | I38: =K36 -> 0 | J38: x 7% = | K38: =I38*0.07 -> 0
C40: Cumulative Eligible Capital - Closing Balance | K40: =K36-K38 -> 0

Sheet E. Sch 13 Tax Reserves Hist
C8: Schedule 13 Tax Reserves - Historical
C10: Continuity of Reserves
C13: Description | D13: Historical Balance as per tax returns | E13: Non-Distribution Eliminations | F13: Utility Only
C15: Capital Gains Reserves ss.40(1) | F15: =D15-E15 -> 0
C16: Tax Reserves Not Deducted for accounting purposes
C17: Reserve for doubtful accounts ss. 20(1)(l) | F17: =D17-E17 -> 0
C18: Reserve for goods and services not delivered ss. 20(1)(m) | F18: 0
C19: Reserve for unpaid amounts ss. 20(1)(n) | F19: 0
C20: Debt & Share Issue Expenses ss. 20(1)(e) | F20: 0
C21: Other tax reserves | F21: 0
F22: 0
F23: 0
F24: 0
F25: 0
F26: 0
C27: Total | D27: =SUM(D17:D26) -> 0 | E27: =SUM(E17:E26) -> 0 | F27: =SUM(F17:F26) -> 0
C29: Financial Statement Reserves (not deductible for Tax Purposes)
C30: General Reserve for Inventory Obsolescence (non-specific) | F30: =D30-E30 -> 0
C31: General reserve for bad debts | F31: 0
C32: Accrued Employee Future Benefits: | F32: 0
C33: - Medical and Life Insurance | F33: 0
C34: -Short & Long-term Disability | F34: 0
C35: -Accmulated Sick Leave | F35: 0
C36: - Termination Cost | F36: 0
C37: - Other Post-Employment Benefits | F37: 0
C38: Provision for Environmental Costs | F38: 0
C39: Restructuring Costs | F39: 0
C40: Accrued Contingent Litigation Costs | F40: 0
C41: Accrued Self-Insurance Costs | F41: 0
C42: Other Contingent Liabilities | F42: 0
C43: Bonuses Accrued and Not Paid Within 180 Days of Year-End ss. 78(4) | F43: 0
C44: Unpaid Amounts to Related Person and Not Paid Within 3 Taxation Years ss. 78(1) | F44: 0
C45: Other | F45: 0
F49: 0
F50: 0
C51: Total | D51: =SUM(D30:D50) -> 0 | E51: =SUM(E30:E50) -> 0 | F51: =SUM(F30:F50) -> 0

Sheet F. Sch 7-1 Loss Cfwd Hist
C9: Schedule 7-1 Loss Carry Forward - Historic
C11: Corporation Loss Continuity and Application
C13: Non-Capital Loss Carry Forward Deduction | F13: Total | G13: Non-Distribution Portion | H13: Utility Balance
C14: Actual Historic | H14: =F14-G14 -> 0
C16: Net Capital Loss Carry Forward Deduction | F16: Total | G16: Non-Distribution Portion | H16: Utility Balance
C17: Actual Historic | H17: =F17-G17 -> 0

Sheet G. Adj. Taxable Income Historic
C8: Adjusted Taxable Income - Historic Year
D11: T2S1 line # | E11: Total for Legal Entity | F11: Non-Distribution Eliminations | G11: Historic Wires Only
C12: Income before PILs/Taxes | D12: A | E12: =1830424+755386+120000 -> 2705810 | G12: =+E12-F12 -> 2705810
C13: Additions:
C14: Interest and penalties on taxes | D14: 103 | E14: 13606 | G14: =+E14-F14 -> 13606
C15: Amortization of tangible assets | D15: 104 | G15: 0
C16: Amortization of intangible assets | D16: 106 | E16: 3424461 | G16: 3424461
C17: Recapture of capital cost allowance from Schedule 8 | D17: 107 | G17: 0
C18: Gain on sale of eligible capital property from Schedule 10 | D18: 108 | G18: 0
C19: Income or loss for tax purposes- joint ventures or partnerships | D19: 109 | G19: 0
C20: Loss in equity of subsidiaries and affiliates | D20: 110 | G20: 0
C21: Loss on disposal of assets | D21: 111 | G21: 0
C22: Charitable donations | D22: 112 | G22: 0
C23: Taxable Capital Gains | D23: 113 | G23: 0
C24: Political Donations | D24: 114 | G24: 0
C25: Deferred and prepaid expenses | D25: 116 | G25: 0
C26: Scientific research expenditures deducted on financial statements | D26: 118 | G26: 0
C27: Capitalized interest | D27: 119 | G27: 0
C28: Non-deductible club dues and fees | D28: 120 | G28: 0
C29: Non-deductible meals and entertainment expense | D29: 121 | G29: 0
C30: Non-deductible automobile expenses | D30: 122 | G30: 0
C31: Non-deductible life insurance premiums | D31: 123 | G31: 0
C32: Non-deductible company pension plans | D32: 124 | G32: 0
C33: Tax reserves deducted in prior year | D33: 125 | G33: 0
C34: Reserves from financial statements- balance at end of year | D34: 126 | G34: 0
C35: Soft costs on construction and renovation of buildings | D35: 127 | G35: 0
C36: Book loss on joint ventures or partnerships | D36: 205 | G36: 0
C37: Capital items expensed | D37: 206 | G37: 0
C38: Debt issue expense | D38: 208 | G38: 0
C39: Development expenses claimed in current year | D39: 212 | G39: 0
C40: Financing fees deducted in books | D40: 216 | G40: 0
C41: Gain on settlement of debt | D41: 220 | G41: 0
C42: Non-deductible advertising | D42: 226 | G42: 0
C43: Non-deductible interest | D43: 227 | G43: 0
C44: Non-deductible legal and accounting fees | D44: 228 | G44: 0
C45: Recapture of SR&ED expenditures | D45: 231 | G45: 0
C46: Share issue expense | D46: 235 | G46: 0
C47: Write down of capital property | D47: 236 | G47: 0
C48: Amounts received in respect of qualifying environment trust per paragraphs 12(1)(z.1) and 12(1)(z.2) | D48: 237 | G48: 0
C49: Other Additions
C50: Interest Expensed on Capital Leases | D50: 290 | G50: 0
C51: Realized Income from Deferred Credit Accounts | D51: 291 | G51: 0
C52: Pensions | D52: 292 | G52: 0
C53: Non-deductible penalties | D53: 293 | G53: 0
D54: 294 | G54: 0
D55: 295 | G55: =+E55-F55 -> 0
C56: ARO Accretion expense | G56: 0
C57: Capital Contributions Received (ITA 12(1)(x)) | G57: 0
C58: Lease Inducements Received (ITA 12(1)(x)) | G58: 0
C59: Deferred Revenue (ITA 12(1)(a)) | G59: 0
C60: Prior Year Investment Tax Credits received | G60: 0
G61: 0
G62: 0
G63: 0
G64: 0
G65: 0
G66: 0
G67: 0
G68: 0
G69: 0
G70: 0
C71: Total Additions | E71: =SUM(E13:E70) -> 3438067 | F71: =SUM(F13:F70) -> 0 | G71: =SUM(G13:G70) -> 3438067
C73: Deductions:
C74: Gain on disposal of assets per financial statements | D74: 401 | G74: =+E74-F74 -> 0
C75: Dividends not taxable under section 83 | D75: 402 | G75: 0
C76: Capital cost allowance from Schedule 8 | D76: 403 | E76: 3492005 | G76: 3492005
C77: Terminal loss from Schedule 8 | D77: 404 | G77: 0
C78: Cumulative eligible capital deduction from Schedule 10 | D78: 405 | G78: 0
C79: Allowable business investment loss | D79: 406 | G79: 0
C80: Deferred and prepaid expenses | D80: 409 | G80: 0
C81: Scientific research expenses claimed in year | D81: 411 | G81: 0
C82: Tax reserves claimed in current year | D82: 413 | G82: 0
C83: Reserves from financial statements - balance at beginning of year | D83: 414 | G83: 0
C84: Contributions to deferred income plans | D84: 416 | G84: 0
C85: Book income of joint venture or partnership | D85: 305 | G85: 0
C86: Equity in income from subsidiary or affiliates | D86: 306 | G86: 0
C87: Other deductions: (Please explain in detail the nature of the item)
C89: Interest capitalized for accounting deducted for tax | D89: 390 | G89: 0
C90: Capital Lease Payments | D90: 391 | G90: 0
C91: Non-taxable imputed interest income on deferral and variance accounts | D91: 392 | G91: 0
D92: 393 | G92: 0
D93: 394 | G93: 0
C94: ARO Payments - Deductible for Tax when Paid | G94: 0
C95: ITA 13(7.4) Election - Capital Contributions Received | G95: 0
C96: ITA 13(7.4) Election - Apply Lease Inducement to cost of Leaseholds | G96: 0
C97: Deferred Revenue - ITA 20(1)(m) reserve | G97: 0
C98: Principal portion of lease payments | G98: 0
C99: Lease Inducement Book Amortization credit to income | G99: 0
C100: Financing fees for tax ITA 20(1)(e) and (e.1) | G100: 0
G101: 0
G102: 0
G103: 0
G104: 0
G105: 0
G106: 0
G107: 0
C109: Total Deductions | E109: =SUM(E74:E108) -> 3492005 | F109: =SUM(F74:F108) -> 0 | G109: =SUM(G74:G108) -> 3492005
C111: Net Income for Tax Purposes | E111: =+E12+E71-E109 -> 2651872 | F111: =+F12+F71-F109 -> 0 | G111: =+G12+G71-G109 -> 2651872
C113: Charitable donations from Schedule 2 | D113: 311 | G113: =+E113-F113 -> 0
C114: Taxable dividends deductible under section 112 or 113, from Schedule 3 (item 82) | D114: 320 | G114: =+E114-F114 -> 0
C115: Non-capital losses of preceding taxation years from Schedule 4 | D115: 331 | G115: =+E115-F115 -> 0
C116: Net-capital losses of preceding taxation years from Schedule 4 (Please include explanation and calculation in Manager's summary) | D116: 332 | G116: =+E116-F116 -> 0
C117: Limited partnership losses of preceding taxation years from Schedule 4 | D117: 335 | G117: =+E117-F117 -> 0
C119: TAXABLE INCOME | E119: =+E111-SUM(E113:E117) -> 2651872 | F119: =+F111-SUM(F113:F117) -> 0 | G119: =+G111-SUM(G113:G117) -> 2651872

Sheet H. PILs,Tax Provision Historic
C6: PILs Tax Provision - Historic Year
C8: Note: Input the actual information from the tax returns for the historic year. | I8: Wires Only
C10: Regulatory Taxable Income | I10: ='G. Adj. Taxable Income Historic'!G119 -> 2651872 | J10: A
C12: Ontario Income Taxes
C13: Income tax payable | D13: Ontario Income Tax | E13: =+G13/I10 -> 0.117479275 | F13: B | G13: 311540 | H13: C = A * B
C15: Small business credit | D15: Ontario Small Business Threshold | E15: ='B. Tax Rates & Exemptions'!E27 -> 500000 | F15: D
D16: Rate reduction (negative) | F16: E | H16: F = D * E
C20: Ontario Income tax | I20: =SUM(G13:G19) -> 311540 | J20: J = C + F
C23: Combined Tax Rate and PILs | D23: Effective Ontario Tax Rate | G23: =IF(I10>0,I20/I10,0) -> 0.117479275 | H23: K = J / A
D24: Federal tax rate | G24: 0.165 | H24: L
D25: Combined tax rate | I25: =SUM(G23:G24) -> 0.282479275 | J25: M = K + L
C28: Total Income Taxes | I28: =I10*I25 -> 749098.88 | J28: N = A * M
C30: Investment Tax Credits | I30: 0 | J30: O
C31: Miscellaneous Tax Credits | I31: 0 | J31: P
C32: Total Tax Credits | I32: =SUM(I30:I31) -> 0 | J32: Q = O + P
C34: Corporate PILs/Income Tax Provision for Historic Year | I34: =IF(I28-I32<0,0,I28-I32) -> 749098.88 | J34: R = N - Q

Sheet I. Schedule 8 CCA Bridge Year
C7: Schedule 8 CCA - Bridge Year
C9: Class | D9: Class Description | E9: UCC Regulated Historic Year | F9: Additions | G9: Disposals (Negative) | H9: UCC Before 1/2 Yr Adjustment | I9: 1/2 Year Rule {1/2 Additions Less Disposals} | J9: Reduced UCC | K9: Rate % | L9: Bridge Year CCA | M9: UCC End of Bridge Year
C10: =IF(ISBLANK('C. Sch 8 Hist'!C12), "", 'C. Sch 8 Hist'!C12) -> 1 | D10: =IF(ISBLANK('C. Sch 8 Hist'!D12), "", 'C. Sch 8 Hist'!D12) -> Distribution System - post 1987 | E10: =IF(ISBLANK('C. Sch 8 Hist'!E12), "", 'C. Sch 8 Hist'!G12) -> 33320799 | F10: 91270 | H10: =MAX((SUM(E10:G10)),0) -> 33412069 | I10: =IF((F10+G10)<=0, 0,(F10+G10)*0.5) -> 45635 | J10: =+H10-I10 -> 33366434 | K10: 0.04 | L10: =IF(+J10<0,+J10,+J10*K10) -> 1334657.36 | M10: =MAX(0,+H10-L10) -> 32077411.64
C11: =IF(ISBLANK('C. Sch 8 Hist'!C13), "", 'C. Sch 8 Hist'!C13) -> 1 Enhanced | D11: =IF(ISBLANK('C. Sch 8 Hist'!D13), "", 'C. Sch 8 Hist'!D13) -> Non-residential Buildings Reg. 1100(1)(a.1) election | E11: =IF(ISBLANK('C. Sch 8 Hist'!E13), "", 'C. Sch 8 Hist'!G13) ->  | H11: =MAX((SUM(E11:G11)),0) -> 0 | I11: =IF((F11+G11)<=0, 0,(F11+G11)*0.5) -> 0 | J11: =+H11-I11 -> 0 | K11: 0.06 | L11: 0 | M11: 0
C12: =IF(ISBLANK('C. Sch 8 Hist'!C14), "", 'C. Sch 8 Hist'!C14) -> 2 | D12: =IF(ISBLANK('C. Sch 8 Hist'!D14), "", 'C. Sch 8 Hist'!D14) -> Distribution System - pre 1988 | E12: =IF(ISBLANK('C. Sch 8 Hist'!E14), "", 'C. Sch 8 Hist'!G14) ->  | H12: 0 | I12: 0 | J12: 0 | K12: 0.06 | L12: 0 | M12: 0
C13: =IF(ISBLANK('C. Sch 8 Hist'!C15), "", 'C. Sch 8 Hist'!C15) -> 8 | D13: =IF(ISBLANK('C. Sch 8 Hist'!D15), "", 'C. Sch 8 Hist'!D15) -> General Office/Stores Equip | E13: =IF(ISBLANK('C. Sch 8 Hist'!E15), "", 'C. Sch 8 Hist'!G15) -> 198470 | H13: 198470 | I13: 0 | J13: 198470 | K13: 0.2 | L13: 39694 | M13: 158776
C14: =IF(ISBLANK('C. Sch 8 Hist'!C16), "", 'C. Sch 8 Hist'!C16) -> 10 | D14: =IF(ISBLANK('C. Sch 8 Hist'!D16), "", 'C. Sch 8 Hist'!D16) -> Computer Hardware/ Vehicles | E14: =IF(ISBLANK('C. Sch 8 Hist'!E16), "", 'C. Sch 8 Hist'!G16) ->  | H14: 0 | I14: 0 | J14: 0 | K14: 0.3 | L14: 0 | M14: 0
C15: =IF(ISBLANK('C. Sch 8 Hist'!C17), "", 'C. Sch 8 Hist'!C17) -> 10.1 | D15: =IF(ISBLANK('C. Sch 8 Hist'!D17), "", 'C. Sch 8 Hist'!D17) -> Certain Automobiles | E15: =IF(ISBLANK('C. Sch 8 Hist'!E17), "", 'C. Sch 8 Hist'!G17) ->  | H15: 0 | I15: 0 | J15: 0 | K15: 0.3 | L15: 0 | M15: 0
C16: =IF(ISBLANK('C. Sch 8 Hist'!C18), "", 'C. Sch 8 Hist'!C18) -> 12 | D16: =IF(ISBLANK('C. Sch 8 Hist'!D18), "", 'C. Sch 8 Hist'!D18) -> Computer Software | E16: =IF(ISBLANK('C. Sch 8 Hist'!E18), "", 'C. Sch 8 Hist'!G18) ->  | F16: 666078 | H16: 666078 | I16: 333039 | J16: 333039 | K16: 1 | L16: =IF(+J16<0,+J16,+J16*K16) -> 333039 | M16: =MAX(0,+H16-L16) -> 333039
C17: =IF(ISBLANK('C. Sch 8 Hist'!C19), "", 'C. Sch 8 Hist'!C19) -> 13 1 | D17: =IF(ISBLANK('C. Sch 8 Hist'!D19), "", 'C. Sch 8 Hist'!D19) -> Lease # 1 | E17: =IF(ISBLANK('C. Sch 8 Hist'!E19), "", 'C. Sch 8 Hist'!G19) ->  | H17: 0 | I17: 0 | J17: 0 | L17: 0 | M17: 0
C18: =IF(ISBLANK('C. Sch 8 Hist'!C20), "", 'C. Sch 8 Hist'!C20) -> 13 2 | D18: =IF(ISBLANK('C. Sch 8 Hist'!D20), "", 'C. Sch 8 Hist'!D20) -> Lease #2 | E18: =IF(ISBLANK('C. Sch 8 Hist'!E20), "", 'C. Sch 8 Hist'!G20) ->  | H18: 0 | I18: 0 | J18: 0 | L18: 0 | M18: 0
C19: =IF(ISBLANK('C. Sch 8 Hist'!C21), "", 'C. Sch 8 Hist'!C21) -> 13 3 | D19: =IF(ISBLANK('C. Sch 8 Hist'!D21), "", 'C. Sch 8 Hist'!D21) -> Lease # 3 | E19: =IF(ISBLANK('C. Sch 8 Hist'!E21), "", 'C. Sch 8 Hist'!G21) ->  | H19: 0 | I19: 0 | J19: 0 | L19: 0 | M19: 0
C20: =IF(ISBLANK('C. Sch 8 Hist'!C22), "", 'C. Sch 8 Hist'!C22) -> 13 4 | D20: =IF(ISBLANK('C. Sch 8 Hist'!D22), "", 'C. Sch 8 Hist'!D22) -> Lease # 4 | E20: =IF(ISBLANK('C. Sch 8 Hist'!E22), "", 'C. Sch 8 Hist'!G22) ->  | H20: 0 | I20: 0 | J20: 0 | L20: 0 | M20: 0
C21: =IF(ISBLANK('C. Sch 8 Hist'!C23), "", 'C. Sch 8 Hist'!C23) -> 14 | D21: =IF(ISBLANK('C. Sch 8 Hist'!D23), "", 'C. Sch 8 Hist'!D23) -> Franchise | E21: =IF(ISBLANK('C. Sch 8 Hist'!E23), "", 'C. Sch 8 Hist'!G23) ->  | H21: 0 | I21: 0 | J21: 0 | L21: 0 | M21: 0
C22: =IF(ISBLANK('C. Sch 8 Hist'!C24), "", 'C. Sch 8 Hist'!C24) -> 17 | D22: =IF(ISBLANK('C. Sch 8 Hist'!D24), "", 'C. Sch 8 Hist'!D24) -> New Electrical Generating Equipment Acq'd after Feb 27/00 Other Than Bldgs | E22: =IF(ISBLANK('C. Sch 8 Hist'!E24), "", 'C. Sch 8 Hist'!G24) ->  | H22: 0 | I22: 0 | J22: 0 | K22: 0.08 | L22: =IF(+J22<0,+J22,+J22*K22) -> 0 | M22: 0
C23: =IF(ISBLANK('C. Sch 8 Hist'!C25), "", 'C. Sch 8 Hist'!C25) -> 42 | D23: =IF(ISBLANK('C. Sch 8 Hist'!D25), "", 'C. Sch 8 Hist'!D25) -> Fibre Optic Cable | E23: =IF(ISBLANK('C. Sch 8 Hist'!E25), "", 'C. Sch 8 Hist'!G25) ->  | H23: 0 | I23: 0 | J23: 0 | K23: 0.12 | L23: =IF(+J23<0,+J23,+J23*K23) -> 0 | M23: 0
C24: =IF(ISBLANK('C. Sch 8 Hist'!C26), "", 'C. Sch 8 Hist'!C26) -> 43.1 | D24: =IF(ISBLANK('C. Sch 8 Hist'!D26), "", 'C. Sch 8 Hist'!D26) -> Certain Energy-Efficient Electrical Generating Equipment | E24: =IF(ISBLANK('C. Sch 8 Hist'!E26), "", 'C. Sch 8 Hist'!G26) ->  | H24: 0 | I24: 0 | J24: 0 | K24: 0.3 | L24: 0 | M24: 0
C25: =IF(ISBLANK('C. Sch 8 Hist'!C27), "", 'C. Sch 8 Hist'!C27) -> 43.2 | D25: =IF(ISBLANK('C. Sch 8 Hist'!D27), "", 'C. Sch 8 Hist'!D27) -> Certain Clean Energy Generation Equipment | E25: =IF(ISBLANK('C. Sch 8 Hist'!E27), "", 'C. Sch 8 Hist'!G27) ->  | H25: 0 | I25: 0 | J25: 0 | K25: 0.5 | L25: 0 | M25: 0
C26: =IF(ISBLANK('C. Sch 8 Hist'!C28), "", 'C. Sch 8 Hist'!C28) -> 45 | D26: =IF(ISBLANK('C. Sch 8 Hist'!D28), "", 'C. Sch 8 Hist'!D28) -> Computers & Systems Software acq'd post Mar 22/04 | E26: =IF(ISBLANK('C. Sch 8 Hist'!E28), "", 'C. Sch 8 Hist'!G28) ->  | H26: 0 | I26: 0 | J26: 0 | K26: 0.45 | L26: 0 | M26: 0
C27: =IF(ISBLANK('C. Sch 8 Hist'!C29), "", 'C. Sch 8 Hist'!C29) -> 46 | D27: =IF(ISBLANK('C. Sch 8 Hist'!D29), "", 'C. Sch 8 Hist'!D29) -> Data Network Infrastructure Equipment (acq'd post Mar 22/04) | E27: =IF(ISBLANK('C. Sch 8 Hist'!E29), "", 'C. Sch 8 Hist'!G29) ->  | H27: 0 | I27: 0 | J27: 0 | K27: 0.3 | L27: 0 | M27: 0
C28: =IF(ISBLANK('C. Sch 8 Hist'!C30), "", 'C. Sch 8 Hist'!C30) -> 47 | D28: =IF(ISBLANK('C. Sch 8 Hist'!D30), "", 'C. Sch 8 Hist'!D30) -> Distribution System - post February 2005 | E28: =IF(ISBLANK('C. Sch 8 Hist'!E30), "", 'C. Sch 8 Hist'!G30) -> 25533302 | F28: 5416216 | H28: 30949518 | I28: 2708108 | J28: 28241410 | K28: 0.08 | L28: 2259312.8 | M28: 28690205.2
C29: =IF(ISBLANK('C. Sch 8 Hist'!C31), "", 'C. Sch 8 Hist'!C31) -> 50 | D29: =IF(ISBLANK('C. Sch 8 Hist'!D31), "", 'C. Sch 8 Hist'!D31) -> Data Network Infrastructure Equipment - post Mar 2007 | E29: =IF(ISBLANK('C. Sch 8 Hist'!E31), "", 'C. Sch 8 Hist'!G31) ->  | H29: 0 | I29: 0 | J29: 0 | K29: 0.55 | L29: 0 | M29: 0
C30: =IF(ISBLANK('C. Sch 8 Hist'!C32), "", 'C. Sch 8 Hist'!C32) -> 52 | D30: =IF(ISBLANK('C. Sch 8 Hist'!D32), "", 'C. Sch 8 Hist'!D32) -> Computer Hardware and system software | E30: =IF(ISBLANK('C. Sch 8 Hist'!E32), "", 'C. Sch 8 Hist'!G32) ->  | H30: 0 | I30: 0 | J30: 0 | K30: 1 | L30: 0 | M30: 0
C31: =IF(ISBLANK('C. Sch 8 Hist'!C33), "", 'C. Sch 8 Hist'!C33) -> 95 | D31: =IF(ISBLANK('C. Sch 8 Hist'!D33), "", 'C. Sch 8 Hist'!D33) -> CWIP | E31: =IF(ISBLANK('C. Sch 8 Hist'!E33), "", 'C. Sch 8 Hist'!G33) ->  | H31: 0 | I31: 0 | J31: 0 | L31: 0 | M31: 0
C32: 1 | D32: Meters Pre 2005 | E32: =+'C. Sch 8 Hist'!G34 -> 1577648 | G32: -1577648 | H32: 0 | I32: 0 | J32: 0 | K32: 0.04 | L32: 0 | M32: 0
H33: 0 | I33: 0 | J33: 0 | K33: 0.04 | L33: 0 | M33: 0
C34: =IF(ISBLANK('C. Sch 8 Hist'!C36), "", 'C. Sch 8 Hist'!C36) ->  | D34: =IF(ISBLANK('C. Sch 8 Hist'!D36), "", 'C. Sch 8 Hist'!D36) ->  | E34: =IF(ISBLANK('C. Sch 8 Hist'!E36), "", 'C. Sch 8 Hist'!G36) ->  | H34: =MAX((SUM(E34:G34)),0) -> 0 | I34: 0 | J34: =+H34-I34 -> 0 | L34: 0 | M34: 0
C35: =IF(ISBLANK('C. Sch 8 Hist'!C37), "", 'C. Sch 8 Hist'!C37) ->  | D35: =IF(ISBLANK('C. Sch 8 Hist'!D37), "", 'C. Sch 8 Hist'!D37) ->  | E35: =IF(ISBLANK('C. Sch 8 Hist'!E37), "", 'C. Sch 8 Hist'!G37) ->  | H35: =MAX((SUM(E35:G35)),0) -> 0 | I35: 0 | J35: =+H35-I35 -> 0 | L35: 0 | M35: 0
C36: =IF(ISBLANK('C. Sch 8 Hist'!C38), "", 'C. Sch 8 Hist'!C38) ->  | D36: =IF(ISBLANK('C. Sch 8 Hist'!D38), "", 'C. Sch 8 Hist'!D38) ->  | E36: =IF(ISBLANK('C. Sch 8 Hist'!E38), "", 'C. Sch 8 Hist'!G38) ->  | H36: =MAX((SUM(E36:G36)),0) -> 0 | I36: 0 | J36: =+H36-I36 -> 0 | L36: 0 | M36: 0
C37: =IF(ISBLANK('C. Sch 8 Hist'!C39), "", 'C. Sch 8 Hist'!C39) ->  | D37: =IF(ISBLANK('C. Sch 8 Hist'!D39), "", 'C. Sch 8 Hist'!D39) ->  | E37: =IF(ISBLANK('C. Sch 8 Hist'!E39), "", 'C. Sch 8 Hist'!G39) ->  | H37: 0 | I37: 0 | J37: 0 | L37: 0 | M37: 0
C38: =IF(ISBLANK('C. Sch 8 Hist'!C40), "", 'C. Sch 8 Hist'!C40) ->  | D38: =IF(ISBLANK('C. Sch 8 Hist'!D40), "", 'C. Sch 8 Hist'!D40) ->  | E38: =IF(ISBLANK('C. Sch 8 Hist'!E40), "", 'C. Sch 8 Hist'!G40) ->  | H38: 0 | I38: 0 | J38: 0 | L38: 0 | M38: 0
C39: =IF(ISBLANK('C. Sch 8 Hist'!C41), "", 'C. Sch 8 Hist'!C41) ->  | D39: =IF(ISBLANK('C. Sch 8 Hist'!D41), "", 'C. Sch 8 Hist'!D41) ->  | E39: =IF(ISBLANK('C. Sch 8 Hist'!E41), "", 'C. Sch 8 Hist'!G41) ->  | H39: 0 | I39: 0 | J39: 0 | L39: 0 | M39: 0
C40: =IF(ISBLANK('C. Sch 8 Hist'!C42), "", 'C. Sch 8 Hist'!C42) ->  | D40: =IF(ISBLANK('C. Sch 8 Hist'!D42), "", 'C. Sch 8 Hist'!D42) ->  | E40: =IF(ISBLANK('C. Sch 8 Hist'!E42), "", 'C. Sch 8 Hist'!G42) ->  | H40: 0 | I40: 0 | J40: 0 | L40: 0 | M40: 0
C41: =IF(ISBLANK('C. Sch 8 Hist'!C43), "", 'C. Sch 8 Hist'!C43) ->  | D41: =IF(ISBLANK('C. Sch 8 Hist'!D43), "", 'C. Sch 8 Hist'!D43) ->  | E41: =IF(ISBLANK('C. Sch 8 Hist'!E43), "", 'C. Sch 8 Hist'!G43) ->  | H41: 0 | I41: 0 | J41: 0 | L41: 0 | M41: 0
D42: TOTAL | E42: =SUM(E10:E41) -> 60630219 | F42: 6173564 | G42: -1577648 | H42: 65226135 | I42: 3086782 | J42: 62139353 | L42: =SUM(L10:L41) -> 3966703.16 | M42: =SUM(M10:M41) -> 61259431.84

Sheet J. Schedule 10 CEC Bridge Year
C6: Schedule 10 CEC - Bridge Year
C10: Cumulative Eligible Capital | K10: ='D. Schedule 10 CEC Hist'!K40 -> 0
C11: Additions
C12: Cost of Eligible Capital Property Acquired during Test Year
C14: Other Adjustments | G14: 0
C16: Subtotal | G16: =SUM(G12,G14) -> 0 | I16: x 3/4 = | J16: =3/4*G16 -> 0
C18: Non-taxable portion of a non-arm's length transferor's gain realized on the | G18: 0 | I18: x 1/2 = | J18: =IF((G18*0.5)<0, 0, G18*0.5) -> 0
C19: transfer of an ECP to the Corporation after Friday, December 20, 2002
J20: =IF((J16-J18)<0,0,J16-J18) -> 0 | K20: =J20 -> 0
C22: Amount transferred on amalgamation or wind-up of subsidiary | G22: 0 | K22: =G22 -> 0
F24: Subtotal | K24: =SUM(K10,K20,K22) -> 0
C26: Deductions
C28: Proceeds of sale (less outlays and expenses not otherwise deductible)
C29: from the disposition of all ECP during Test Year
C31: Other Adjustments | G31: 0
F33: Subtotal | G33: =SUM(G31,G28) -> 0 | I33: x 3/4 = | K33: =G33*3/4 -> 0
C36: Cumulative Eligible Capital Balance | K36: =K24-K33 -> 0
C38: Current Year Deduction | I38: =K36 -> 0 | J38: x 7% = | K38: =I38*0.07 -> 0
C40: Cumulative Eligible Capital - Closing Balance | K40: =K36-K38 -> 0

Sheet K. Sch 13 Tax Reserves Bridge
C7: Schedule 13 Tax Reserves - Bridge Year
C9: Continuity of Reserves
G10: Bridge Year Adjustments
C11: Description | D11: Historic Utility Only | E11: Eliminate Amounts Not Relevant for Bridge Year | F11: Adjusted Utility Balance | G11: Additions | H11: Disposals | I11: Balance for Bridge Year | J11: Change During the Year | K11: Disallowed Expenses
C13: Capital Gains Reserves ss.40(1) | D13: ='E. Sch 13 Tax Reserves Hist'!F15 -> 0 | F13: =SUM(D13:E13) -> 0 | I13: =F13+G13-H13 -> 0 | J13: =+I13-F13 -> 0
C14: Tax Reserves Not Deducted for accounting purposes
C15: Reserve for doubtful accounts ss. 20(1)(l) | D15: ='E. Sch 13 Tax Reserves Hist'!F17 -> 0 | F15: =SUM(D15:E15) -> 0 | I15: =F15+G15-H15 -> 0 | J15: =+I15-F15 -> 0
C16: Reserve for goods and services not delivered ss. 20(1)(m) | D16: ='E. Sch 13 Tax Reserves Hist'!F18 -> 0 | F16: 0 | I16: 0 | J16: 0
C17: Reserve for unpaid amounts ss. 20(1)(n) | D17: ='E. Sch 13 Tax Reserves Hist'!F19 -> 0 | F17: 0 | I17: 0 | J17: 0
C18: Debt & Share Issue Expenses ss. 20(1)(e) | D18: ='E. Sch 13 Tax Reserves Hist'!F20 -> 0 | F18: 0 | I18: 0 | J18: 0
C19: Other tax reserves | D19: ='E. Sch 13 Tax Reserves Hist'!F21 -> 0 | F19: 0 | I19: 0 | J19: 0
D20: ='E. Sch 13 Tax Reserves Hist'!F25 -> 0 | F20: 0 | I20: 0 | J20: 0
D21: ='E. Sch 13 Tax Reserves Hist'!F26 -> 0 | F21: 0 | I21: 0 | J21: 0
C22: Total | D22: =SUM(D15:D21) -> 0 | E22: 0 | F22: 0 | G22: 0 | H22: 0 | I22: 0 | J22: 0 | K22: 0
D23: 0
C24: Financial Statement Reserves (not deductible for Tax Purposes)
C25: General Reserve for Inventory Obsolescence (non-specific) | D25: ='E. Sch 13 Tax Reserves Hist'!F30 -> 0 | F25: =SUM(D25:E25) -> 0 | I25: =F25+G25-H25 -> 0 | J25: =+I25-F25 -> 0
C26: General reserve for bad debts | D26: ='E. Sch 13 Tax Reserves Hist'!F31 -> 0 | F26: 0 | I26: 0 | J26: 0
C27: Accrued Employee Future Benefits: | D27: ='E. Sch 13 Tax Reserves Hist'!F32 -> 0 | F27: 0 | I27: 0 | J27: 0
C28: - Medical and Life Insurance | D28: ='E. Sch 13 Tax Reserves Hist'!F33 -> 0 | F28: 0 | I28: 0 | J28: 0
C29: -Short & Long-term Disability | D29: ='E. Sch 13 Tax Reserves Hist'!F34 -> 0 | F29: 0 | I29: 0 | J29: 0
C30: -Accmulated Sick Leave | D30: ='E. Sch 13 Tax Reserves Hist'!F35 -> 0 | F30: 0 | I30: 0 | J30: 0
C31: - Termination Cost | D31: ='E. Sch 13 Tax Reserves Hist'!F36 -> 0 | F31: 0 | I31: 0 | J31: 0
C32: - Other Post-Employment Benefits | D32: ='E. Sch 13 Tax Reserves Hist'!F37 -> 0 | F32: 0 | I32: 0 | J32: 0
C33: Provision for Environmental Costs | D33: ='E. Sch 13 Tax Reserves Hist'!F38 -> 0 | F33: 0 | I33: 0 | J33: 0
C34: Restructuring Costs | D34: ='E. Sch 13 Tax Reserves Hist'!F39 -> 0 | F34: 0 | I34: 0 | J34: 0
C35: Accrued Contingent Litigation Costs | D35: ='E. Sch 13 Tax Reserves Hist'!F40 -> 0 | F35: 0 | I35: 0 | J35: 0
C36: Accrued Self-Insurance Costs | D36: ='E. Sch 13 Tax Reserves Hist'!F41 -> 0 | F36: 0 | I36: 0 | J36: 0
C37: Other Contingent Liabilities | D37: ='E. Sch 13 Tax Reserves Hist'!F42 -> 0 | F37: 0 | I37: 0 | J37: 0
C38: Bonuses Accrued and Not Paid Within 180 Days of Year-End ss. 78(4) | D38: ='E. Sch 13 Tax Reserves Hist'!F43 -> 0 | F38: 0 | I38: 0 | J38: 0
C39: Unpaid Amounts to Related Person and Not Paid Within 3 Taxation Years ss. 78(1) | D39: ='E. Sch 13 Tax Reserves Hist'!F44 -> 0 | F39: 0 | I39: 0 | J39: 0
C40: Other | D40: ='E. Sch 13 Tax Reserves Hist'!F45 -> 0 | F40: 0 | I40: 0 | J40: 0
D41: ='E. Sch 13 Tax Reserves Hist'!F49 -> 0 | F41: =SUM(D41:E41) -> 0 | I41: 0 | J41: =+I41-F41 -> 0
D42: ='E. Sch 13 Tax Reserves Hist'!F50 -> 0 | F42: =SUM(D42:E42) -> 0 | I42: 0 | J42: =+I42-F42 -> 0
C43: Total | D43: =SUM(D25:D42) -> 0 | E43: =SUM(E25:E42) -> 0 | F43: 0 | G43: 0 | H43: 0 | I43: 0 | J43: 0 | K43: 0
D44: 0

Sheet L. Sch 7-1 Loss Cfwd Bridge
C7: Corporation Loss Continuity and Application
C9: Schedule 7-1 Loss Carry Forward - Bridge Year
C11: Non-Capital Loss Carry Forward Deduction | F11: Total
C12: Actual Historic | F12: ='F. Sch 7-1 Loss Cfwd Hist'!H14 -> 0
C13: Application of Loss Carry Forward to reduce taxable income in Bridge Year
C14: Other Adjustments Add (+) Deduct (-)
C15: Balance available for use in Test Year | F15: =F12-F13+F14 -> 0
C16: Amount to be used in Bridge Year
C17: Balance available for use post Bridge Year | F17: =F15-F16 -> 0
C19: Net Capital Loss Carry Forward Deduction | F19: Total
C20: Actual Historic | F20: ='F. Sch 7-1 Loss Cfwd Hist'!H17 -> 0
C21: Application of Loss Carry Forward to reduce taxable income in Bridge Year
C22: Other Adjustments Add (+) Deduct (-)
C23: Balance available for use in Test Year | F23: =F20-F21+F22 -> 0
C24: Amount to be used in Bridge Year
C25: Balance available for use post Bridge Year | F25: =F23-F24 -> 0

Sheet M. Adj. Taxable Income Bridge
B5: Adjusted Taxable Income - Bridge Year
D7: T2S1 line # | E7: Total for Regulated Utility
C8: Income before PILs/Taxes | D8: A | E8: 1651014
C10: Additions:
C11: Interest and penalties on taxes | D11: 103 | E11: 6584
C12: Amortization of tangible assets | D12: 104 | E12: 4142848
C13: Amortization of intangible assets | D13: 106
C14: Recapture of capital cost allowance from Schedule 8 | D14: 107
C15: Gain on sale of eligible capital property from Schedule 10 | D15: 108
C16: Income or loss for tax purposes- joint ventures or partnerships | D16: 109
C17: Loss in equity of subsidiaries and affiliates | D17: 110
C18: Loss on disposal of assets | D18: 111
C19: Charitable donations | D19: 112
C20: Taxable Capital Gains | D20: 113
C21: Political Donations | D21: 114
C22: Deferred and prepaid expenses | D22: 116
C23: Scientific research expenditures deducted on financial statements | D23: 118
C24: Capitalized interest | D24: 119
C25: Non-deductible club dues and fees | D25: 120
C26: Non-deductible meals and entertainment expense | D26: 121
C27: Non-deductible automobile expenses | D27: 122
C28: Non-deductible life insurance premiums | D28: 123
C29: Non-deductible company pension plans | D29: 124
C30: Tax reserves deducted in prior year | D30: 125 | E30: ='K. Sch 13 Tax Reserves Bridge'!F22 -> 0
C31: Reserves from financial statements- balance at end of year | D31: 126 | E31: ='K. Sch 13 Tax Reserves Bridge'!I43 -> 0
C32: Soft costs on construction and renovation of buildings | D32: 127
C33: Book loss on joint ventures or partnerships | D33: 205
C34: Capital items expensed | D34: 206
C35: Debt issue expense | D35: 208
C36: Development expenses claimed in current year | D36: 212
C37: Financing fees deducted in books | D37: 216
C38: Gain on settlement of debt | D38: 220
C39: Non-deductible advertising | D39: 226
C40: Non-deductible interest | D40: 227
C41: Non-deductible legal and accounting fees | D41: 228
C42: Recapture of SR&ED expenditures | D42: 231
C43: Share issue expense | D43: 235
C44: Write down of capital property | D44: 236
C45: Amounts received in respect of qualifying environment trust per paragraphs 12(1)(z.1) and 12(1)(z.2) | D45: 237
C46: Other Additions
C47: Interest Expensed on Capital Leases | D47: 290
C48: Realized Income from Deferred Credit Accounts | D48: 291
C49: Pensions | D49: 292
C50: Non-deductible penalties | D50: 293
D51: 294
D52: 295
C53: ARO Accretion expense
C54: Capital Contributions Received (ITA 12(1)(x))
C55: Lease Inducements Received (ITA 12(1)(x))
C56: Deferred Revenue (ITA 12(1)(a))
C57: Prior Year Investment Tax Credits received
C68: Total Additions | E68: =SUM(E10:E67) -> 4149432
C69: Deductions:
C70: Gain on disposal of assets per financial statements | D70: 401
C71: Dividends not taxable under section 83 | D71: 402
C72: Capital cost allowance from Schedule 8 | D72: 403 | E72: ='I. Schedule 8 CCA Bridge Year'!L42 -> 3966703.16
C73: Terminal loss from Schedule 8 | D73: 404 | E73: 165485
C74: Cumulative eligible capital deduction from Schedule 10 | D74: 405 | E74: ='J. Schedule 10 CEC Bridge Year'!K38 -> 0
C75: Allowable business investment loss | D75: 406
C76: Deferred and prepaid expenses | D76: 409
C77: Scientific research expenses claimed in year | D77: 411
C78: Tax reserves claimed in current year | D78: 413 | E78: ='K. Sch 13 Tax Reserves Bridge'!I22 -> 0
C79: Reserves from financial statements - balance at beginning of year | D79: 414 | E79: ='K. Sch 13 Tax Reserves Bridge'!F43 -> 0
C80: Contributions to deferred income plans | D80: 416
C81: Book income of joint venture or partnership | D81: 305
C82: Equity in income from subsidiary or affiliates | D82: 306
C83: Other deductions: (Please explain in detail the nature of the item)
C85: Interest capitalized for accounting deducted for tax | D85: 390
C86: Capital Lease Payments | D86: 391
C87: Non-taxable imputed interest income on deferral and variance accounts | D87: 392
D88: 393
D89: 394
C90: ARO Payments - Deductible for Tax when Paid
C91: ITA 13(7.4) Election - Capital Contributions Received
C92: ITA 13(7.4) Election - Apply Lease Inducement to cost of Leaseholds
C93: Deferred Revenue - ITA 20(1)(m) reserve
C94: Principal portion of lease payments
C95: Lease Inducement Book Amortization credit to income
C96: Financing fees for tax ITA 20(1)(e) and (e.1)
C105: Total Deductions | E105: =SUM(E70:E104) -> 4132188.16
C107: Net Income for Tax Purposes | E107: =+E8+E68-E105 -> 1668257.84
C108: Charitable donations from Schedule 2 | D108: 311
C109: Taxable dividends deductible under section 112 or 113, from Schedule 3 (item 82) | D109: 320
C110: Non-capital losses of preceding taxation years from Schedule 4 | D110: 331
C111: Net-capital losses of preceding taxation years from Schedule 4 (Please include explanation and calculation in Manager's summary) | D111: 332
C112: Limited partnership losses of preceding taxation years from Schedule 4 | D112: 335
C114: TAXABLE INCOME | E114: =+E107-SUM(E108:E112) -> 1668257.84

Sheet N. PILs,Tax Provision Bridge
B6: PILS Tax Provision - Bridge Year
I8: Wires Only
C10: Regulatory Taxable Income | I10: ='M. Adj. Taxable Income Bridge'!E114 -> 1668257.84 | J10: A
C12: Ontario Income Taxes
C13: Income tax payable | D13: Ontario Income Tax | E13: =IF(I10<=500000,'B. Tax Rates & Exemptions'!F31,'B. Tax Rates & Exemptions'!F21) -> 0.115 | F13: B | G13: =IF(I10>0,I10*E13,0) -> 191849.6516 | H13: C = A * B
C15: Small business credit | D15: Ontario Small Business Threshold | E15: =IF(I10>'B. Tax Rates & Exemptions'!F27,'B. Tax Rates & Exemptions'!F27,0) -> 500000 | F15: D
D16: Rate reduction | E16: =-('B. Tax Rates & Exemptions'!F21-'B. Tax Rates & Exemptions'!F31) -> -0.07 | F16: E | G16: =IF(I10>0,E15*E16,0) -> -35000 | H16: F = D * E
C20: Ontario Income tax | I20: =SUM(G13:G19) -> 156849.6516 | J20: J = C + F
C23: Combined Tax Rate and PILs | D23: Effective Ontario Tax Rate | G23: =IF(I10>0,I20/I10,0) -> 0.09402002966 | H23: K = J / A
D24: Federal tax rate | G24: =IF(I10<=0,0,IF(I10<=500000,'B. Tax Rates & Exemptions'!F29,'B. Tax Rates & Exemptions'!F19)) -> 0.15 | H24: L
D25: Combined tax rate | I25: =SUM(G23:G24) -> 0.2440200297 | J25: M = K + L
C28: Total Income Taxes | I28: =I10*I25 -> 407088.3276 | J28: N = A * M
C30: Investment Tax Credits | J30: O
C31: Miscellaneous Tax Credits | J31: P
C32: Total Tax Credits | I32: =SUM(I30:I31) -> 0 | J32: Q = O + P
C34: Corporate PILs/Income Tax Provision for Bridge Year | I34: =IF(I28-I32<0,0,I28-I32) -> 407088.3276 | J34: R = N - Q
C38: Note:
C39: 1. This is for the derivation of Bridge year PILs income tax expense and should not be used for Test year revenue requirement calculations.

Sheet O. Schedule 8 CCA Test Year
B7: Schedule 8 CCA - Test Year
C10: Class | D10: Class Description | E10: UCC Test Year Opening Balance | F10: Additions | G10: Disposals (Negative) | H10: UCC Before 1/2 Yr Adjustment | I10: 1/2 Year Rule {1/2 Additions Less Disposals} | J10: Reduced UCC | K10: Rate % | L10: Test Year CCA | M10: UCC End of Test Year
C11: =IF(ISBLANK('I. Schedule 8 CCA Bridge Year'!C10), "", 'I. Schedule 8 CCA Bridge Year'!C10) -> 1 | D11: =IF(ISBLANK('I. Schedule 8 CCA Bridge Year'!D10), "", 'I. Schedule 8 CCA Bridge Year'!D10) -> Distribution System - post 1987 | E11: =IF(ISBLANK('I. Schedule 8 CCA Bridge Year'!M10), "", 'I. Schedule 8 CCA Bridge Year'!M10) -> 32077411.64 | F11: 35000 | H11: =MAX((SUM(E11:G11)),0) -> 32112411.64 | I11: =IF((F11+G11)<=0, 0,(F11+G11)*0.5) -> 17500 | J11: =+H11-I11 -> 32094911.64 | K11: ='I. Schedule 8 CCA Bridge Year'!K10 -> 0.04 | L11: =IF(+J11<0,+J11,+J11*K11) -> 1283796.466 | M11: =MAX(0,+H11-L11) -> 30828615.17
C12: =IF(ISBLANK('I. Schedule 8 CCA Bridge Year'!C11), "", 'I. Schedule 8 CCA Bridge Year'!C11) -> 1 Enhanced | D12: =IF(ISBLANK('I. Schedule 8 CCA Bridge Year'!D11), "", 'I. Schedule 8 CCA Bridge Year'!D11) -> Non-residential Buildings Reg. 1100(1)(a.1) election | E12: =IF(ISBLANK('I. Schedule 8 CCA Bridge Year'!M11), "", 'I. Schedule 8 CCA Bridge Year'!M11) -> 0 | H12: 0 | I12: =IF((F12+G12)<=0, 0,(F12+G12)*0.5) -> 0 | J12: 0 | K12: ='I. Schedule 8 CCA Bridge Year'!K11 -> 0.06 | L12: 0 | M12: 0
C13: =IF(ISBLANK('I. Schedule 8 CCA Bridge Year'!C12), "", 'I. Schedule 8 CCA Bridge Year'!C12) -> 2 | D13: =IF(ISBLANK('I. Schedule 8 CCA Bridge Year'!D12), "", 'I. Schedule 8 CCA Bridge Year'!D12) -> Distribution System - pre 1988 | E13: =IF(ISBLANK('I. Schedule 8 CCA Bridge Year'!M12), "", 'I. Schedule 8 CCA Bridge Year'!M12) -> 0 | H13: 0 | I13: 0 | J13: 0 | K13: ='I. Schedule 8 CCA Bridge Year'!K12 -> 0.06 | L13: 0 | M13: 0
C14: =IF(ISBLANK('I. Schedule 8 CCA Bridge Year'!C13), "", 'I. Schedule 8 CCA Bridge Year'!C13) -> 8 | D14: =IF(ISBLANK('I. Schedule 8 CCA Bridge Year'!D13), "", 'I. Schedule 8 CCA Bridge Year'!D13) -> General Office/Stores Equip | E14: =IF(ISBLANK('I. Schedule 8 CCA Bridge Year'!M13), "", 'I. Schedule 8 CCA Bridge Year'!M13) -> 158776 | H14: 158776 | I14: 0 | J14: 158776 | K14: ='I. Schedule 8 CCA Bridge Year'!K13 -> 0.2 | L14: 31755.2 | M14: 127020.8
C15: =IF(ISBLANK('I. Schedule 8 CCA Bridge Year'!C14), "", 'I. Schedule 8 CCA Bridge Year'!C14) -> 10 | D15: =IF(ISBLANK('I. Schedule 8 CCA Bridge Year'!D14), "", 'I. Schedule 8 CCA Bridge Year'!D14) -> Computer Hardware/ Vehicles | E15: =IF(ISBLANK('I. Schedule 8 CCA Bridge Year'!M14), "", 'I. Schedule 8 CCA Bridge Year'!M14) -> 0 | H15: 0 | I15: 0 | J15: 0 | K15: ='I. Schedule 8 CCA Bridge Year'!K14 -> 0.3 | L15: 0 | M15: 0
C16: =IF(ISBLANK('I. Schedule 8 CCA Bridge Year'!C15), "", 'I. Schedule 8 CCA Bridge Year'!C15) -> 10.1 | D16: =IF(ISBLANK('I. Schedule 8 CCA Bridge Year'!D15), "", 'I. Schedule 8 CCA Bridge Year'!D15) -> Certain Automobiles | E16: =IF(ISBLANK('I. Schedule 8 CCA Bridge Year'!M15), "", 'I. Schedule 8 CCA Bridge Year'!M15) -> 0 | H16: 0 | I16: 0 | J16: 0 | K16: ='I. Schedule 8 CCA Bridge Year'!K15 -> 0.3 | L16: 0 | M16: 0
C17: =IF(ISBLANK('I. Schedule 8 CCA Bridge Year'!C16), "", 'I. Schedule 8 CCA Bridge Year'!C16) -> 12 | D17: =IF(ISBLANK('I. Schedule 8 CCA Bridge Year'!D16), "", 'I. Schedule 8 CCA Bridge Year'!D16) -> Computer Software | E17: =IF(ISBLANK('I. Schedule 8 CCA Bridge Year'!M16), "", 'I. Schedule 8 CCA Bridge Year'!M16) -> 333039 | H17: 333039 | I17: 0 | J17: 333039 | K17: ='I. Schedule 8 CCA Bridge Year'!K16 -> 1 | L17: 333039 | M17: 0
C18: =IF(ISBLANK('I. Schedule 8 CCA Bridge Year'!C17), "", 'I. Schedule 8 CCA Bridge Year'!C17) -> 13 1 | D18: =IF(ISBLANK('I. Schedule 8 CCA Bridge Year'!D17), "", 'I. Schedule 8 CCA Bridge Year'!D17) -> Lease # 1 | E18: =IF(ISBLANK('I. Schedule 8 CCA Bridge Year'!M17), "", 'I. Schedule 8 CCA Bridge Year'!M17) -> 0 | H18: 0 | I18: 0 | J18: 0 | L18: 0 | M18: 0
C19: =IF(ISBLANK('I. Schedule 8 CCA Bridge Year'!C18), "", 'I. Schedule 8 CCA Bridge Year'!C18) -> 13 2 | D19: =IF(ISBLANK('I. Schedule 8 CCA Bridge Year'!D18), "", 'I. Schedule 8 CCA Bridge Year'!D18) -> Lease #2 | E19: =IF(ISBLANK('I. Schedule 8 CCA Bridge Year'!M18), "", 'I. Schedule 8 CCA Bridge Year'!M18) -> 0 | H19: 0 | I19: 0 | J19: 0 | L19: 0 | M19: 0
C20: =IF(ISBLANK('I. Schedule 8 CCA Bridge Year'!C19), "", 'I. Schedule 8 CCA Bridge Year'!C19) -> 13 3 | D20: =IF(ISBLANK('I. Schedule 8 CCA Bridge Year'!D19), "", 'I. Schedule 8 CCA Bridge Year'!D19) -> Lease # 3 | E20: =IF(ISBLANK('I. Schedule 8 CCA Bridge Year'!M19), "", 'I. Schedule 8 CCA Bridge Year'!M19) -> 0 | H20: 0 | I20: 0 | J20: 0 | L20: 0 | M20: 0
C21: =IF(ISBLANK('I. Schedule 8 CCA Bridge Year'!C20), "", 'I. Schedule 8 CCA Bridge Year'!C20) -> 13 4 | D21: =IF(ISBLANK('I. Schedule 8 CCA Bridge Year'!D20), "", 'I. Schedule 8 CCA Bridge Year'!D20) -> Lease # 4 | E21: =IF(ISBLANK('I. Schedule 8 CCA Bridge Year'!M20), "", 'I. Schedule 8 CCA Bridge Year'!M20) -> 0 | H21: 0 | I21: 0 | J21: 0 | L21: 0 | M21: 0
C22: =IF(ISBLANK('I. Schedule 8 CCA Bridge Year'!C21), "", 'I. Schedule 8 CCA Bridge Year'!C21) -> 14 | D22: =IF(ISBLANK('I. Schedule 8 CCA Bridge Year'!D21), "", 'I. Schedule 8 CCA Bridge Year'!D21) -> Franchise | E22: =IF(ISBLANK('I. Schedule 8 CCA Bridge Year'!M21), "", 'I. Schedule 8 CCA Bridge Year'!M21) -> 0 | H22: 0 | I22: 0 | J22: 0 | L22: 0 | M22: 0
C23: =IF(ISBLANK('I. Schedule 8 CCA Bridge Year'!C22), "", 'I. Schedule 8 CCA Bridge Year'!C22) -> 17 | D23: =IF(ISBLANK('I. Schedule 8 CCA Bridge Year'!D22), "", 'I. Schedule 8 CCA Bridge Year'!D22) -> New Electrical Generating Equipment Acq'd after Feb 27/00 Other Than Bldgs | E23: =IF(ISBLANK('I. Schedule 8 CCA Bridge Year'!M22), "", 'I. Schedule 8 CCA Bridge Year'!M22) -> 0 | H23: 0 | I23: 0 | J23: 0 | K23: ='I. Schedule 8 CCA Bridge Year'!K22 -> 0.08 | L23: 0 | M23: 0
C24: =IF(ISBLANK('I. Schedule 8 CCA Bridge Year'!C23), "", 'I. Schedule 8 CCA Bridge Year'!C23) -> 42 | D24: =IF(ISBLANK('I. Schedule 8 CCA Bridge Year'!D23), "", 'I. Schedule 8 CCA Bridge Year'!D23) -> Fibre Optic Cable | E24: =IF(ISBLANK('I. Schedule 8 CCA Bridge Year'!M23), "", 'I. Schedule 8 CCA Bridge Year'!M23) -> 0 | H24: 0 | I24: 0 | J24: 0 | K24: ='I. Schedule 8 CCA Bridge Year'!K23 -> 0.12 | L24: =IF(+J24<0,+J24,+J24*K24) -> 0 | M24: 0
C25: =IF(ISBLANK('I. Schedule 8 CCA Bridge Year'!C24), "", 'I. Schedule 8 CCA Bridge Year'!C24) -> 43.1 | D25: =IF(ISBLANK('I. Schedule 8 CCA Bridge Year'!D24), "", 'I. Schedule 8 CCA Bridge Year'!D24) -> Certain Energy-Efficient Electrical Generating Equipment | E25: =IF(ISBLANK('I. Schedule 8 CCA Bridge Year'!M24), "", 'I. Schedule 8 CCA Bridge Year'!M24) -> 0 | H25: 0 | I25: 0 | J25: 0 | K25: ='I. Schedule 8 CCA Bridge Year'!K24 -> 0.3 | L25: 0 | M25: 0
C26: =IF(ISBLANK('I. Schedule 8 CCA Bridge Year'!C25), "", 'I. Schedule 8 CCA Bridge Year'!C25) -> 43.2 | D26: =IF(ISBLANK('I. Schedule 8 CCA Bridge Year'!D25), "", 'I. Schedule 8 CCA Bridge Year'!D25) -> Certain Clean Energy Generation Equipment | E26: =IF(ISBLANK('I. Schedule 8 CCA Bridge Year'!M25), "", 'I. Schedule 8 CCA Bridge Year'!M25) -> 0 | H26: 0 | I26: 0 | J26: 0 | K26: ='I. Schedule 8 CCA Bridge Year'!K25 -> 0.5 | L26: 0 | M26: 0
C27: =IF(ISBLANK('I. Schedule 8 CCA Bridge Year'!C26), "", 'I. Schedule 8 CCA Bridge Year'!C26) -> 45 | D27: =IF(ISBLANK('I. Schedule 8 CCA Bridge Year'!D26), "", 'I. Schedule 8 CCA Bridge Year'!D26) -> Computers & Systems Software acq'd post Mar 22/04 | E27: =IF(ISBLANK('I. Schedule 8 CCA Bridge Year'!M26), "", 'I. Schedule 8 CCA Bridge Year'!M26) -> 0 | H27: 0 | I27: 0 | J27: 0 | K27: ='I. Schedule 8 CCA Bridge Year'!K26 -> 0.45 | L27: 0 | M27: 0
C28: =IF(ISBLANK('I. Schedule 8 CCA Bridge Year'!C27), "", 'I. Schedule 8 CCA Bridge Year'!C27) -> 46 | D28: =IF(ISBLANK('I. Schedule 8 CCA Bridge Year'!D27), "", 'I. Schedule 8 CCA Bridge Year'!D27) -> Data Network Infrastructure Equipment (acq'd post Mar 22/04) | E28: =IF(ISBLANK('I. Schedule 8 CCA Bridge Year'!M27), "", 'I. Schedule 8 CCA Bridge Year'!M27) -> 0 | H28: 0 | I28: 0 | J28: 0 | K28: ='I. Schedule 8 CCA Bridge Year'!K27 -> 0.3 | L28: 0 | M28: 0
C29: =IF(ISBLANK('I. Schedule 8 CCA Bridge Year'!C28), "", 'I. Schedule 8 CCA Bridge Year'!C28) -> 47 | D29: =IF(ISBLANK('I. Schedule 8 CCA Bridge Year'!D28), "", 'I. Schedule 8 CCA Bridge Year'!D28) -> Distribution System - post February 2005 | E29: =IF(ISBLANK('I. Schedule 8 CCA Bridge Year'!M28), "", 'I. Schedule 8 CCA Bridge Year'!M28) -> 28690205.2 | F29: =4602000-35000-130000 -> 4437000 | H29: 33127205.2 | I29: 2218500 | J29: 30908705.2 | K29: ='I. Schedule 8 CCA Bridge Year'!K28 -> 0.08 | L29: 2472696.416 | M29: 30654508.78
C30: =IF(ISBLANK('I. Schedule 8 CCA Bridge Year'!C29), "", 'I. Schedule 8 CCA Bridge Year'!C29) -> 50 | D30: =IF(ISBLANK('I. Schedule 8 CCA Bridge Year'!D29), "", 'I. Schedule 8 CCA Bridge Year'!D29) -> Data Network Infrastructure Equipment - post Mar 2007 | E30: =IF(ISBLANK('I. Schedule 8 CCA Bridge Year'!M29), "", 'I. Schedule 8 CCA Bridge Year'!M29) -> 0 | H30: 0 | I30: 0 | J30: 0 | K30: ='I. Schedule 8 CCA Bridge Year'!K29 -> 0.55 | L30: 0 | M30: 0
C31: =IF(ISBLANK('I. Schedule 8 CCA Bridge Year'!C30), "", 'I. Schedule 8 CCA Bridge Year'!C30) -> 52 | D31: =IF(ISBLANK('I. Schedule 8 CCA Bridge Year'!D30), "", 'I. Schedule 8 CCA Bridge Year'!D30) -> Computer Hardware and system software | E31: =IF(ISBLANK('I. Schedule 8 CCA Bridge Year'!M30), "", 'I. Schedule 8 CCA Bridge Year'!M30) -> 0 | H31: 0 | I31: 0 | J31: 0 | K31: ='I. Schedule 8 CCA Bridge Year'!K30 -> 1 | L31: 0 | M31: 0
C32: =IF(ISBLANK('I. Schedule 8 CCA Bridge Year'!C31), "", 'I. Schedule 8 CCA Bridge Year'!C31) -> 95 | D32: =IF(ISBLANK('I. Schedule 8 CCA Bridge Year'!D31), "", 'I. Schedule 8 CCA Bridge Year'!D31) -> CWIP | E32: =IF(ISBLANK('I. Schedule 8 CCA Bridge Year'!M31), "", 'I. Schedule 8 CCA Bridge Year'!M31) -> 0 | H32: 0 | I32: 0 | J32: 0 | K32: ='I. Schedule 8 CCA Bridge Year'!K31 -> 0 | L32: 0 | M32: 0
C33: =IF(ISBLANK('I. Schedule 8 CCA Bridge Year'!C32), "", 'I. Schedule 8 CCA Bridge Year'!C32) -> 1 | D33: =IF(ISBLANK('I. Schedule 8 CCA Bridge Year'!D32), "", 'I. Schedule 8 CCA Bridge Year'!D32) -> Meters Pre 2005 | E33: =+'I. Schedule 8 CCA Bridge Year'!M32 -> 0 | H33: 0 | I33: 0 | J33: 0 | K33: ='I. Schedule 8 CCA Bridge Year'!K32 -> 0.04 | L33: 0 | M33: 0
C34: =IF(ISBLANK('I. Schedule 8 CCA Bridge Year'!C33), "", 'I. Schedule 8 CCA Bridge Year'!C33) ->  | D34: =IF(ISBLANK('I. Schedule 8 CCA Bridge Year'!D33), "", 'I. Schedule 8 CCA Bridge Year'!D33) ->  | H34: 0 | I34: 0 | J34: 0 | K34: ='I. Schedule 8 CCA Bridge Year'!K33 -> 0.04 | L34: 0 | M34: 0
C35: =IF(ISBLANK('I. Schedule 8 CCA Bridge Year'!C34), "", 'I. Schedule 8 CCA Bridge Year'!C34) ->  | D35: =IF(ISBLANK('I. Schedule 8 CCA Bridge Year'!D34), "", 'I. Schedule 8 CCA Bridge Year'!D34) ->  | E35: =IF(ISBLANK('I. Schedule 8 CCA Bridge Year'!E34), "", 'I. Schedule 8 CCA Bridge Year'!E34) ->  | H35: 0 | I35: 0 | J35: 0 | K35: ='I. Schedule 8 CCA Bridge Year'!K34 -> 0 | L35: 0 | M35: 0
C36: =IF(ISBLANK('I. Schedule 8 CCA Bridge Year'!C35), "", 'I. Schedule 8 CCA Bridge Year'!C35) ->  | D36: =IF(ISBLANK('I. Schedule 8 CCA Bridge Year'!D35), "", 'I. Schedule 8 CCA Bridge Year'!D35) ->  | E36: =IF(ISBLANK('I. Schedule 8 CCA Bridge Year'!E35), "", 'I. Schedule 8 CCA Bridge Year'!E35) ->  | H36: =MAX((SUM(E36:G36)),0) -> 0 | I36: 0 | J36: =+H36-I36 -> 0 | K36: ='I. Schedule 8 CCA Bridge Year'!K35 -> 0 | L36: =IF(+J36<0,+J36,+J36*K36) -> 0 | M36: 0
C37: =IF(ISBLANK('I. Schedule 8 CCA Bridge Year'!C36), "", 'I. Schedule 8 CCA Bridge Year'!C36) ->  | D37: =IF(ISBLANK('I. Schedule 8 CCA Bridge Year'!D36), "", 'I. Schedule 8 CCA Bridge Year'!D36) ->  | E37: =IF(ISBLANK('I. Schedule 8 CCA Bridge Year'!E36), "", 'I. Schedule 8 CCA Bridge Year'!E36) ->  | H37: =MAX((SUM(E37:G37)),0) -> 0 | I37: 0 | J37: =+H37-I37 -> 0 | K37: ='I. Schedule 8 CCA Bridge Year'!K36 -> 0 | L37: =IF(+J37<0,+J37,+J37*K37) -> 0 | M37: 0
C38: =IF(ISBLANK('I. Schedule 8 CCA Bridge Year'!C37), "", 'I. Schedule 8 CCA Bridge Year'!C37) ->  | D38: =IF(ISBLANK('I. Schedule 8 CCA Bridge Year'!D37), "", 'I. Schedule 8 CCA Bridge Year'!D37) ->  | E38: =IF(ISBLANK('I. Schedule 8 CCA Bridge Year'!E37), "", 'I. Schedule 8 CCA Bridge Year'!E37) ->  | H38: =MAX((SUM(E38:G38)),0) -> 0 | I38: 0 | J38: =+H38-I38 -> 0 | K38: ='I. Schedule 8 CCA Bridge Year'!K37 -> 0 | L38: =IF(+J38<0,+J38,+J38*K38) -> 0 | M38: 0
C39: =IF(ISBLANK('I. Schedule 8 CCA Bridge Year'!C38), "", 'I. Schedule 8 CCA Bridge Year'!C38) ->  | D39: =IF(ISBLANK('I. Schedule 8 CCA Bridge Year'!D38), "", 'I. Schedule 8 CCA Bridge Year'!D38) ->  | E39: =IF(ISBLANK('I. Schedule 8 CCA Bridge Year'!E38), "", 'I. Schedule 8 CCA Bridge Year'!E38) ->  | H39: 0 | I39: 0 | J39: 0 | K39: ='I. Schedule 8 CCA Bridge Year'!K38 -> 0 | L39: 0 | M39: 0
C40: =IF(ISBLANK('I. Schedule 8 CCA Bridge Year'!C39), "", 'I. Schedule 8 CCA Bridge Year'!C39) ->  | D40: =IF(ISBLANK('I. Schedule 8 CCA Bridge Year'!D39), "", 'I. Schedule 8 CCA Bridge Year'!D39) ->  | E40: =IF(ISBLANK('I. Schedule 8 CCA Bridge Year'!E39), "", 'I. Schedule 8 CCA Bridge Year'!E39) ->  | H40: 0 | I40: 0 | J40: 0 | K40: ='I. Schedule 8 CCA Bridge Year'!K39 -> 0 | L40: 0 | M40: 0
C41: =IF(ISBLANK('I. Schedule 8 CCA Bridge Year'!C40), "", 'I. Schedule 8 CCA Bridge Year'!C40) ->  | D41: =IF(ISBLANK('I. Schedule 8 CCA Bridge Year'!D40), "", 'I. Schedule 8 CCA Bridge Year'!D40) ->  | E41: =IF(ISBLANK('I. Schedule 8 CCA Bridge Year'!E40), "", 'I. Schedule 8 CCA Bridge Year'!E40) ->  | H41: 0 | I41: 0 | J41: 0 | K41: ='I. Schedule 8 CCA Bridge Year'!K40 -> 0 | L41: 0 | M41: 0
C42: =IF(ISBLANK('I. Schedule 8 CCA Bridge Year'!C41), "", 'I. Schedule 8 CCA Bridge Year'!C41) ->  | D42: =IF(ISBLANK('I. Schedule 8 CCA Bridge Year'!D41), "", 'I. Schedule 8 CCA Bridge Year'!D41) ->  | E42: =IF(ISBLANK('I. Schedule 8 CCA Bridge Year'!E41), "", 'I. Schedule 8 CCA Bridge Year'!E41) ->  | H42: 0 | I42: 0 | J42: 0 | K42: ='I. Schedule 8 CCA Bridge Year'!K41 -> 0 | L42: 0 | M42: 0
D43: TOTAL | E43: =SUM(E11:E42) -> 61259431.84 | F43: 4472000 | G43: 0 | H43: 65731431.84 | I43: 2236000 | J43: 63495431.84 | L43: =SUM(L11:L42) -> 4121287.082 | M43: =SUM(M11:M42) -> 61610144.76

Sheet P. Schedule 10 CEC Test Year
C5: Schedule 10 CEC - Test Year
C7: Cumulative Eligible Capital | K7: ='J. Schedule 10 CEC Bridge Year'!K40 -> 0
C9: Additions
C10: Cost of Eligible Capital Property Acquired during Test Year | G10: 0
C12: Other Adjustments | G12: 0
C14: Subtotal | G14: =SUM(G10,G12) -> 0 | I14: x 3/4 = | J14: =3/4*G14 -> 0
C16: Non-taxable portion of a non-arm's length transferor's gain realized on the | G16: 0 | I16: x 1/2 = | J16: =IF((G16*0.5)<0, 0, G16*0.5) -> 0
C17: transfer of an ECP to the Corporation after Friday, December 20, 2002
J18: =IF((J14-J16)<0,0,J14-J16) -> 0 | K18: =J18 -> 0
C20: Amount transferred on amalgamation or wind-up of subsidiary | G20: 0 | K20: =G20 -> 0
F22: Subtotal | K22: =SUM(K7,K18,K20) -> 0
C24: Deductions
C26: Proceeds of sale (less outlays and expenses not otherwise deductible) | G26: 0
C27: from the disposition of all ECP during Test Year
C29: Other Adjustments | G29: 0
F31: Subtotal | G31: =SUM(G29,G26) -> 0 | I31: x 3/4 = | K31: =G31*3/4 -> 0
C35: Cumulative Eligible Capital Balance | K35: =K22-K31 -> 0
C37: Current Year Deduction (Carry Forward to Tab "Test Year Taxable Income") | I37: =K35 -> 0 | J37: x 7% = | K37: =I37*0.07 -> 0
C39: Cumulative Eligible Capital - Closing Balance | K39: =K35-K37 -> 0

Sheet Q Sch 13 Tax Reserve Test Year
C7: Schedule 13 Tax Reserves - Test Year
C9: Continuity of Reserves
G10: Test Year Adjustments
C11: Description | D11: Bridge Year | E11: Eliminate Amounts Not Relevant for Bridge Year | F11: Adjusted Utility Balance | G11: Additions | H11: Disposals | I11: Balance for Test Year | J11: Change During the Year | K11: Disallowed Expenses
C13: Capital Gains Reserves ss.40(1) | D13: ='K. Sch 13 Tax Reserves Bridge'!I13 -> 0 | F13: =SUM(D13:E13) -> 0 | I13: =F13+G13-H13 -> 0 | J13: =+I13-F13 -> 0
C14: Tax Reserves Not Deducted for accounting purposes
C15: Reserve for doubtful accounts ss. 20(1)(l) | D15: ='K. Sch 13 Tax Reserves Bridge'!I15 -> 0 | F15: =SUM(D15:E15) -> 0 | I15: =F15+G15-H15 -> 0 | J15: =+I15-F15 -> 0
C16: Reserve for goods and services not delivered ss. 20(1)(m) | D16: ='K. Sch 13 Tax Reserves Bridge'!I16 -> 0 | F16: 0 | I16: 0 | J16: 0
C17: Reserve for unpaid amounts ss. 20(1)(n) | D17: ='K. Sch 13 Tax Reserves Bridge'!I17 -> 0 | F17: 0 | I17: 0 | J17: 0
C18: Debt & Share Issue Expenses ss. 20(1)(e) | D18: ='K. Sch 13 Tax Reserves Bridge'!I18 -> 0 | F18: 0 | I18: 0 | J18: 0
C19: Other tax reserves | D19: ='K. Sch 13 Tax Reserves Bridge'!I19 -> 0 | F19: 0 | I19: 0 | J19: 0
D20: ='K. Sch 13 Tax Reserves Bridge'!I20 -> 0 | F20: 0 | I20: 0 | J20: 0
D21: ='K. Sch 13 Tax Reserves Bridge'!I21 -> 0 | F21: 0 | I21: 0 | J21: 0
C22: Total | D22: =SUM(D15:D21) -> 0 | E22: 0 | F22: 0 | G22: 0 | H22: 0 | I22: 0 | J22: 0 | K22: 0
D23: 0
C24: Financial Statement Reserves (not deductible for Tax Purposes)
C25: General Reserve for Inventory Obsolescence (non-specific) | D25: ='K. Sch 13 Tax Reserves Bridge'!I25 -> 0 | F25: =SUM(D25:E25) -> 0 | I25: =F25+G25-H25 -> 0 | J25: =+I25-F25 -> 0
C26: General reserve for bad debts | D26: ='K. Sch 13 Tax Reserves Bridge'!I26 -> 0 | F26: 0 | I26: 0 | J26: 0
C27: Accrued Employee Future Benefits: | D27: ='K. Sch 13 Tax Reserves Bridge'!I27 -> 0 | F27: 0 | I27: 0 | J27: 0
C28: - Medical and Life Insurance | D28: ='K. Sch 13 Tax Reserves Bridge'!I28 -> 0 | F28: 0 | I28: 0 | J28: 0
C29: -Short & Long-term Disability | D29: ='K. Sch 13 Tax Reserves Bridge'!I29 -> 0 | F29: 0 | I29: 0 | J29: 0
C30: -Accmulated Sick Leave | D30: ='K. Sch 13 Tax Reserves Bridge'!I30 -> 0 | F30: 0 | I30: 0 | J30: 0
C31: - Termination Cost | D31: ='K. Sch 13 Tax Reserves Bridge'!I31 -> 0 | F31: 0 | I31: 0 | J31: 0
C32: - Other Post-Employment Benefits | D32: ='K. Sch 13 Tax Reserves Bridge'!I32 -> 0 | F32: 0 | I32: 0 | J32: 0
C33: Provision for Environmental Costs | D33: ='K. Sch 13 Tax Reserves Bridge'!I33 -> 0 | F33: 0 | I33: 0 | J33: 0
C34: Restructuring Costs | D34: ='K. Sch 13 Tax Reserves Bridge'!I34 -> 0 | F34: 0 | I34: 0 | J34: 0
C35: Accrued Contingent Litigation Costs | D35: ='K. Sch 13 Tax Reserves Bridge'!I35 -> 0 | F35: 0 | I35: 0 | J35: 0
C36: Accrued Self-Insurance Costs | D36: ='K. Sch 13 Tax Reserves Bridge'!I36 -> 0 | F36: 0 | I36: 0 | J36: 0
C37: Other Contingent Liabilities | D37: ='K. Sch 13 Tax Reserves Bridge'!I37 -> 0 | F37: 0 | I37: 0 | J37: 0
C38: Bonuses Accrued and Not Paid Within 180 Days of Year-End ss. 78(4) | D38: ='K. Sch 13 Tax Reserves Bridge'!I38 -> 0 | F38: 0 | I38: 0 | J38: 0
C39: Unpaid Amounts to Related Person and Not Paid Within 3 Taxation Years ss. 78(1) | D39: ='K. Sch 13 Tax Reserves Bridge'!I39 -> 0 | F39: 0 | I39: 0 | J39: 0
C40: Other | D40: ='K. Sch 13 Tax Reserves Bridge'!I40 -> 0 | F40: 0 | I40: 0 | J40: 0
D41: ='K. Sch 13 Tax Reserves Bridge'!I41 -> 0 | F41: 0 | I41: 0 | J41: 0
D42: ='K. Sch 13 Tax Reserves Bridge'!I42 -> 0 | F42: 0 | I42: 0 | J42: 0
C43: Total | D43: =SUM(D25:D42) -> 0 | E43: 0 | F43: 0 | G43: 0 | H43: 0 | I43: 0 | J43: 0 | K43: 0
D44: 0

Sheet R. Sch 7-1 Loss Cfwd
C7: Schedule 7-1 Loss Carry Forward - Test Year
C9: Corporation Loss Continuity and Application
C11: Non-Capital Loss Carry Forward Deduction | F11: Total | G11: Non-Distribution Portion | H11: Utility Balance
C12: Actual/Estimated Bridge Year | H12: =F12-G12 -> 0
C13: Application of Loss Carry Forward to reduce taxable income in 2005 | H13: =F13-G13 -> 0
C14: Other Adjustments Add (+) Deduct (-) | H14: =F14-G14 -> 0
C15: Balance available for use in Test Year | F15: =F12-F13+F14 -> 0 | G15: =G12-G13+G14 -> 0 | H15: =H12-H13+H14 -> 0
C16: Amount to be used in Test Year | H16: =F16-G16 -> 0
C17: Balance available for use post Test Year | F17: =F15-F16 -> 0 | G17: =G15-G16 -> 0 | H17: =H15-H16 -> 0
C19: Net Capital Loss Carry Forward Deduction | F19: Total | G19: Non-Distribution Portion | H19: Utility Balance
C20: Actual/Estimated Bridge Year | H20: =F20-G20 -> 0
C21: Application of Loss Carry Forward to reduce taxable income in 2005 | H21: =F21-G21 -> 0
C22: Other Adjustments Add (+) Deduct (-) | H22: =F22-G22 -> 0
C23: Balance available for use in Test Year | F23: =F20-F21+F22 -> 0 | G23: =G20-G21+G22 -> 0 | H23: =H20-H21+H22 -> 0
C24: Amount to be used in Test Year | H24: =F24-G24 -> 0
C25: Balance available for use post Test Year | F25: =F23-F24 -> 0 | G25: =G23-G24 -> 0 | H25: =H23-H24 -> 0

Sheet S. Taxable Income Test Year
C10: Taxable Income - Test Year
E11: Test Year Taxable Income
C12: Net Income Before Taxes | E12: ='A. Data Input Sheet'!G18 -> 2352243.111
D14: T2 S1 line #
C15: Additions:
C16: Interest and penalties on taxes | D16: 103
C17: Amortization of tangible assets 2-4 ADJUSTED ACCOUNTING DATA P489 | D17: 104 | E17: 2672073
C18: Amortization of intangible assets 2-4 ADJUSTED ACCOUNTING DATA P490 | D18: 106
C19: Recapture of capital cost allowance from Schedule 8 | D19: 107
C20: Gain on sale of eligible capital property from Schedule 10 | D20: 108
C21: Income or loss for tax purposes- joint ventures or partnerships | D21: 109
C22: Loss in equity of subsidiaries and affiliates | D22: 110
C23: Loss on disposal of assets | D23: 111
C24: Charitable donations | D24: 112
C25: Taxable Capital Gains | D25: 113
C26: Political Donations | D26: 114
C27: Deferred and prepaid expenses | D27: 116
C28: Scientific research expenditures deducted on financial statements | D28: 118
C29: Capitalized interest | D29: 119
C30: Non-deductible club dues and fees | D30: 120
C31: Non-deductible meals and entertainment expense | D31: 121
C32: Non-deductible automobile expenses | D32: 122
C33: Non-deductible life insurance premiums | D33: 123
C34: Non-deductible company pension plans | D34: 124
C35: Tax reserves beginning of year | D35: 125 | E35: ='Q Sch 13 Tax Reserve Test Year'!F22 -> 0
C36: Reserves from financial statements- balance at end of year | D36: 126 | E36: ='Q Sch 13 Tax Reserve Test Year'!I43 -> 0
C37: Soft costs on construction and renovation of buildings | D37: 127
C38: Book loss on joint ventures or partnerships | D38: 205
C39: Capital items expensed | D39: 206
C40: Debt issue expense | D40: 208
C41: Development expenses claimed in current year | D41: 212
C42: Financing fees deducted in books | D42: 216
C43: Gain on settlement of debt | D43: 220
C44: Non-deductible advertising | D44: 226
C45: Non-deductible interest | D45: 227
C46: Non-deductible legal and accounting fees | D46: 228
C47: Recapture of SR&ED expenditures | D47: 231
C48: Share issue expense | D48: 235
C49: Write down of capital property | D49: 236
C50: Amounts received in respect of qualifying environment trust per paragraphs 12(1)(z.1) and 12(1)(z.2) | D50: 237
C51: Other Additions: (please explain in detail the nature of the item)
C52: Interest Expensed on Capital Leases | D52: 290
C53: Realized Income from Deferred Credit Accounts | D53: 291
C54: Pensions | D54: 292
C55: Non-deductible penalties | D55: 293
D56: 294
D57: 295
D58: 296
D59: 297
C60: ARO Accretion expense
C61: Capital Contributions Received (ITA 12(1)(x))
C62: Lease Inducements Received (ITA 12(1)(x))
C63: Deferred Revenue (ITA 12(1)(a))
C64: Prior Year Investment Tax Credits received
C75: Total Additions | E75: =SUM(E16:E74) -> 2672073
C76: Deductions:
C77: Gain on disposal of assets per financial statements | D77: 401
C78: Dividends not taxable under section 83 | D78: 402
C79: Capital cost allowance from Schedule 8 | D79: 403 | E79: ='O. Schedule 8 CCA Test Year '!L43 -> 4121287.082
C80: Terminal loss from Schedule 8 | D80: 404
C81: Cumulative eligible capital deduction from Schedule 10 CEC | D81: 405 | E81: ='P. Schedule 10 CEC Test Year'!K37 -> 0
C82: Allowable business investment loss | D82: 406
C83: Deferred and prepaid expenses | D83: 409
C84: Scientific research expenses claimed in year | D84: 411
C85: Tax reserves end of year | D85: 413 | E85: ='Q Sch 13 Tax Reserve Test Year'!I22 -> 0
C86: Reserves from financial statements - balance at beginning of year | D86: 414 | E86: ='Q Sch 13 Tax Reserve Test Year'!F43 -> 0
C87: Contributions to deferred income plans | D87: 416
C88: Book income of joint venture or partnership | D88: 305
C89: Equity in income from subsidiary or affiliates | D89: 306
C90: Other deductions: (Please explain in detail the nature of the item)
C91: Interest capitalized for accounting deducted for tax | D91: 390
C92: Capital Lease Payments | D92: 391
C93: Non-taxable imputed interest income on deferral and variance accounts | D93: 392
D94: 393
D95: 394
D96: 395
D97: 396
D98: 397
C99: ARO Payments - Deductible for Tax when Paid
C100: ITA 13(7.4) Election - Capital Contributions Received
C101: ITA 13(7.4) Election - Apply Lease Inducement to cost of Leaseholds
C102: Deferred Revenue - ITA 20(1)(m) reserve
C103: Principal portion of lease payments
C104: Lease Inducement Book Amortization credit to income
C105: Financing fees for tax ITA 20(1)(e) and (e.1)
C114: Total Deductions | E114: =SUM(E77:E113) -> 4121287.082
C116: NET INCOME FOR TAX PURPOSES | E116: =SUM(E12,E75)-E114 -> 903029.0296
C118: Charitable donations | D118: 311
C119: Taxable dividends received under section 112 or 113 | D119: 320
C120: Non-capital losses of preceding taxation years from Schedule 7-1 | D120: 331
C121: Net-capital losses of preceding taxation years (Please show calculation) | D121: 332
C122: Limited partnership losses of preceding taxation years from Schedule 4 | D122: 335
C124: REGULATORY TAXABLE INCOME | E124: =E116-SUM(E118:E123) -> 903029.0296

Sheet T. PILs,Tax Provision
B6: PILs Tax Provision - Test Year
I8: Wires Only
C10: Regulatory Taxable Income | I10: ='S. Taxable Income Test Year'!E124 -> 903029.0296 | J10: A
C12: Ontario Income Taxes
C13: Income tax payable | D13: Ontario Income Tax | E13: =IF(I10<=500000,'B. Tax Rates & Exemptions'!G31,'B. Tax Rates & Exemptions'!G21) -> 0.115 | F13: B | G13: =IF(I10>0,I10*E13,0) -> 103848.3384 | H13: C = A * B
C15: Small business credit | D15: Ontario Small Business Threshold | E15: =IF(I10>'B. Tax Rates & Exemptions'!G27,'B. Tax Rates & Exemptions'!G27,0) -> 500000 | F15: D
D16: Rate reduction | E16: =-('B. Tax Rates & Exemptions'!G21-'B. Tax Rates & Exemptions'!G31) -> -0.07 | F16: E | G16: =IF(I10>0,E15*E16,0) -> -35000 | H16: F = D * E
C20: Ontario Income tax | I20: =SUM(G13:G19) -> 68848.3384 | J20: J = C + F
C23: Combined Tax Rate and PILs | D23: Effective Ontario Tax Rate | G23: =IF(I10>0,I20/I10,0) -> 0.07624155608 | H23: K = J / A
D24: Federal tax rate | G24: =IF(I10<=0,0,IF(I10<=500000,'B. Tax Rates & Exemptions'!G29,'B. Tax Rates & Exemptions'!G19)) -> 0.15 | H24: L
D25: Combined tax rate | I25: =SUM(G23:G24) -> 0.2262415561 | J25: M = K + L
C28: Total Income Taxes | I28: =I10*I25 -> 204302.6928 | J28: N = A * M
C30: Investment Tax Credits | J30: O
C31: Miscellaneous Tax Credits | J31: P
C32: Total Tax Credits | I32: =SUM(I30:I31) -> 0 | J32: Q = O + P
C34: Corporate PILs/Income Tax Provision for Test Year | I34: =IF(I28-I32<0,0,I28-I32) -> 204302.6928 | J34: R = N - Q
C36: Corporate PILs/Income Tax Provision Gross Up 1 | G36: =(1-I25) -> 0.7737584439 | H36: S = 1 - M | I36: =I34/G36-I34 -> 59736.67816 | J36: T = R / S - R
C39: Income Tax (grossed-up) | I39: =I34+I36 -> 264039.371 | J39: U = R + T
C42: Note:
C43: 1. This is for the derivation of revenue requirement and should not be used for sufficiency/deficiency calculations.
